Cogmind - Beta 11 @@@ ROGUE MODE // 2022.03.22 @ 00:20:55 Player: GGOBC-006 Result: Destroyed self with Rocket Launcher Performance ------------- Evolutions (0) 0 Regions Visited (1) 200 Robots Destroyed (27) 135 Value Destroyed (537) 537 Prototype IDs (0) 0 Alien Tech Used (0) 0 Bonus (0) 0 TOTAL SCORE: 872 Bonus ------- None Cogmind --------- Core Integrity 0/250 Matter 222/300 Energy 99/125 System Corruption 0% Temperature Cool (6) Movement Flying (117) Ox1 Location -10/Materials Parts ------- > --- POWER (1) -------- Light Ion Engine > --- PROPULSION (2) --- Flight Unit Flight Unit > --- UTILITY (2) ------ Improved Heat Sink ECM Suite > --- WEAPON (2) ------- Assault Rifle Rocket Launcher > --- INVENTORY (5) ---- Light Nuclear Core Aluminum Leg Aluminum Leg Light Assault Rifle Peak State ------------ > --- POWER ------------ Ion Engine > --- PROPULSION ------- Wheel Wheel > --- UTILITY ---------- Improved Terrain Scanner Improved Terrain Scanner > --- WEAPON ----------- Medium Laser Beam Rifle > --- INVENTORY -------- Light Ion Engine Aluminum Leg Aluminum Leg Light Assault Rifle Rocket Launcher [Rating: 12] Favorites ----------- Power Ion Engine Engine Ion Engine Propulsion Wheel Wheel Wheel Flight Unit Flight Unit Utility Improved Terrain Scanner Device Improved Terrain Scanner Processor Signal Interpreter Protection Light Armor Plating Weapon Beam Rifle Energy Gun Beam Rifle Ballistic Gun Assault Rifle Launcher Rocket Launcher Build | -11 -10 ------- Run | Scr Mat Slots Evolved . | . . Power . | . . Propulsion . | . . Utility . | . . Weapon . | . . Parts Attached 33 | 10 23 Power 4 | 2 2 Engine 4 | 2 2 Core . | . . Reactor . | . . Propulsion 9 | 4 5 Treads . | . . Leg . | . . Wheel 6 | 4 2 Hover . | . . Flight 3 | . 3 Utility 12 | 2 10 Device 10 | 2 8 Storage . | . . Processor 1 | . 1 Hackware . | . . Protection 1 | . 1 Artifact . | . . Weapon 8 | 2 6 Energy Gun 5 | 2 3 Energy Cannon . | . . Ballistic Gun 2 | . 2 Ballistic Cannon . | . . Launcher 1 | . 1 Special Weapon . | . . Impact Weapon . | . . Slashing Weapon . | . . Piercing Weapon . | . . Special Melee Weapon . | . . Unidentified Prototypes . | . . Parts Lost 6 | . 6 Power 1 | . 1 Propulsion 2 | . 2 Utility 1 | . 1 Weapon 2 | . 2 Highest Loss Streak 5 | . 5 To Critical Strikes . | . . Average Slot Usage (%) 95 | . 95 Engine 13 | . 13 Wheel 21 | . 21 Flight 6 | . 6 Device 25 | . 25 Processor 1 | . 1 Energy Gun 21 | . 21 Ballistic Gun 4 | . 4 Naked Turns . | . . Heaviest Build 13 | 11 13 Greatest Support 32 | 32 20 Greatest Overweight (x) 1 | . 1 Average Overweight (x) . | . . Largest Inventory Capacity 5 | 5 5 Average Capacity 5 | 5 5 Most Carried 5 | 5 5 Average Carried 4 | 3 4 Final Capacity 5 | 5 5 Final Carried 5 | 5 4 Class Distribution -------------------- 63% | Scavenger-Mutant 36% | Mutant Dominant Class ---------------- Scavenger-Mutant | -10/Materials Resources | -11 -10 ----------- Run | Scr Mat Matter Collected 570 | 300 270 Remotely . | . . Salvage Created 894 | 228 666 Parts 56 | 20 36 Haulers Intercepted . | . . Recyclers Shooed . | . . Parts Field Recycled . | . . Retrieved Matter . | . . Parts Self-Destructed . | . . Prevented . | . . Kills | -11 -10 ------- Run | Scr Mat Combat Hostiles Destroyed 14 | . 14 Melee 1 | . 1 Guns 10 | . 10 AOE 2 | . 2 Classes Destroyed 7 | 3 4 Worker 3 | 2 1 Tunneler 4 | 4 . Recycler 2 | 1 1 Operator 1 | . 1 Watcher 3 | . 3 Swarmer 3 | . 3 Grunt 11 | . 11 Best Kill Streak 4 | 2 4 Combat Bots Only 4 | . 4 Max Kills in Single Turn 2 | 1 2 Gunslinging . | . . Exploded 2 | . 2 Melee 1 | . 1 Uniques/NPCs Destroyed . | . . Combat | -11 -10 -------- Run | Scr Mat Damage Taken 769 | . 769 Core 252 | . 252 Absorbed by Shields . | . . Regen/Repaired (Parts) 27 | . 27 Core Remaining (%) 100 | 100 . Volleys Fired 123 | 25 98 Largest 2 | 2 2 Hottest 90 | 90 65 Shots Fired 134 | 30 104 Gun 131 | 30 101 Cannon . | . . Launcher 3 | . 3 Special . | . . Kinetic 34 | . 34 Thermal 72 | 5 67 Explosive 3 | . 3 Electromagnetic 25 | 25 . Robot Hit Streak 9 | 4 9 Robot Miss Streak 7 | 3 7 Penetration Max . | . . Secondary Targets . | . . Shots Hit Robots 78 | 14 64 Core Hits 36 | 8 28 Critical Kills . | . . Critical Parts Destroyed . | . . Critical Strikes 3 | 1 2 Burn 2 | . 2 Corrupt 1 | 1 . Melee Attacks . | . . Impact . | . . Slashing . | . . Piercing . | . . Sneak Attacks . | . . Combat Hostiles . | . . Follow-up Attacks . | . . Damage Inflicted 1295 | 196 1099 Guns 1139 | 196 943 Cannons . | . . Explosions 133 | . 133 Melee . | . . Ramming 23 | . 23 Kinetic 235 | . 235 Thermal 721 | 13 708 Explosive 133 | . 133 Electromagnetic 183 | 183 . Impact . | . . Slashing . | . . Piercing . | . . Highest Corruption . | . . Average Corruption . | . . Corruption Purged . | . . Corruption Blocked . | . . Overload Shots . | . . Overflow Damage . | . . Projectiles . | . . Explosions . | . . Melee . | . . Knockbacks . | . . Impact . | . . Kinetic . | . . Secondary . | . . Self-Inflicted Damage 71 | . 71 Shots 2 | . 2 Rammed 9 | . 9 Targets Rammed 9 | . 9 Kicked . | . . Crushed . | . . Highest Temperature 128 | 120 128 Average Temperature 28 | 54 20 Received Heat Transfer 213 | . 213 Siege Activations . | . . Robots Corrupted . | . . Combat Hostiles . | . . Parts Fried 1 | 1 . Impact Corruptions . | . . Robots Melted 1 | . 1 Combat Hostiles 1 | . 1 Parts Melted 4 | . 4 Heat Transferred 1961 | 37 1924 Parts Sabotaged . | . . Parts Stolen . | . . Parts Stripped . | . . Power Chain Reactions . | . . Missiles Intercepted . | . . Alert | -11 -10 ------- Run | Scr Mat Peak Influence 198 | 35 198 Initial 22 | . 22 Average 76 | 16 86 Maximum Alert Level . | . . Low Security (%) 100 | 100 100 Level 1 . | . . Level 2 . | . . Level 3 . | . . Level 4 . | . . Level 5 . | . . High Security . | . . Max Security . | . . Squads Dispatched 3 | . 3 Investigation 2 | . 2 Extermination . | . . Reinforcement 1 | . 1 Assault . | . . Garrison . | . . Intercept . | . . Searches Triggered . | . . Construction Impeded . | . . Haulers Reinforced . | . . Active Scanning Responses . | . . Cargo Convoy Interrupts . | . . Stealth | -11 -10 --------- Run | Scr Mat Distress Signals 2 | . 2 Communications Jammed . | . . Distress Signals . | . . Times Spotted 25 | . 25 Peak Tracking Total 5 | . 5 Tactical Retreats . | . . Traps | -11 -10 ------- Run | Scr Mat Traps Triggered 1 | . 1 Indirectly . | . . Trap Hack Attempts . | . . Triggered . | . . Disarmed . | . . Reprogrammed . | . . Reused . | . . Traps Extracted . | . . Installed . | . . Triggered . | . . Machines | -11 -10 ---------- Run | Scr Mat Machines Disabled . | . . Max in Single Turn . | . . Machines Sabotaged . | . . Garrisons Compromised . | . . Overloaded Fab Kills . | . . Hacking | -11 -10 --------- Run | Scr Mat Machines Accessed 10 | . 10 Terminals 7 | . 7 Fabricators . | . . Repair Stations 1 | . 1 Recycling Units 2 | . 2 Scanalyzers . | . . Garrison Access . | . . Total Hacks 37 | . 37 Successful 23 | . 23 Failed 14 | . 14 Catastrophic 2 | . 2 Database Lockouts . | . . Manual 22 | . 22 Terminals 26 | . 26 Fabricators . | . . Repair Stations 2 | . 2 Recycling Units 9 | . 9 Scanalyzers . | . . Garrison Access . | . . Terminal Hacks 4 | . 4 Robot Analysis 1 | . 1 Emergency Access Points 1 | . 1 Locate Traps 1 | . 1 Recall Reinforcements 1 | . 1 Fabricator Hacks . | . . Repair Station Hacks 2 | . 2 Scan Component 1 | . 1 Repair 1 | . 1 Recycling Unit Hacks 2 | . 2 Report Inventory 1 | . 1 Retrieve Matter 1 | . 1 Scanalyzer . | . . Garrison Access Hacks . | . . Unauthorized Hacks 15 | . 15 Terminals 10 | . 10 Track 4 | . 4 Botnet 3 | . 3 Disrupt 2 | . 2 Operators 1 | . 1 Fabricators . | . . Repair Stations . | . . Recycling Units 5 | . 5 Reject 2 | . 2 Mask 2 | . 2 Tunnel 1 | . 1 Scanalyzers . | . . Garrison Access . | . . Data Cores Recovered . | . . Used . | . . Hacking Detections 8 | . 8 Full Trace Events 1 | . 1 Feedback Events . | . . Feedback Blocked . | . . Robot Schematics Acquired . | . . Robots Built . | . . Authchips . | . . Time . | . . Total Robot Build Rating . | . . Part Schematics Acquired . | . . Parts Built . | . . Authchips . | . . Time . | . . Total Part Build Rating . | . . Parts Repaired 1 | . 1 Time 53 | . 53 Parts Recycled . | . . Recycled Matter . | . . Retrieved Matter . | . . Retrieved Components . | . . Parts Scanalyzed . | . . Part Schematics Acquired . | . . Parts Damaged . | . . Bothacking | -11 -10 ------------ Run | Scr Mat Used RIF Installer . | . . Robots Hacked . | . . Non-combat . | . . Combat . | . . Robot Hacks Applied . | . . Relay Couplers Released . | . . Fabnet Peak Effective % . | . . Robots Rewired . | . . Allies Hacked . | . . Hacks Repelled . | . . Allies | -11 -10 -------- Run | Scr Mat Total Allies . | . . Largest Group . | . . Highest-Rated Group . | . . Highest-Rated Ally . | . . Total Orders . | . . Ally Attacks . | . . Total Damage . | . . Kills . | . . Allies Corrupted . | . . Allies Melted . | . . Intel | -11 -10 ------- Run | Scr Mat Robot Analysis Total 1 | . 1 Derelict Logs Recovered . | . . Drone Launches . | . . Drone Recoveries . | . . Exploration | -11 -10 ------------- Run | Scr Mat Turns Passed 1462 | 225 1237 Spaces Moved 1164 | 161 1003 Core 13 | 8 5 Treads . | . . Legs . | . . Wheels 773 | 153 620 Hover . | . . Flight 378 | . 378 Fastest Speed 37 | 50 37 Average Speed 69 | 93 65 Slowest Speed 120 | 100 120 Overloaded Moves . | . . Propulsion Burnouts . | . . Robots Hopped . | . . Cave-ins Triggered . | . . Exploration Rate (%) 50 | 6 95 Regions Visited 1 Branch Regions . Pre-discovered Areas 1 | . 1 Known Exits Taken . | . . Unknown Exits Taken 1 | 1 . Scrap Searched . | . . Spaces Dug . | . . Terrain Destroyed 13 | . 13 Melee . | . . Projectile . | . . AOE 13 | . 13 Terrain Rammed . | . . Walls Destroyed . | . . Machines Disabled . | . . Actions | -11 -10 --------- Run | Scr Mat Total 1690 | 201 1489 Wait 333 | . 333 Move 1163 | 160 1003 Hop . | . . Pick Up 8 | 4 4 Fast Attach 19 | 7 12 Attach 2 | . 2 Detach 1 | . 1 Swap 12 | 3 9 Drop 20 | 2 18 Fire 123 | 25 98 Melee . | . . Ram 9 | . 9 Kick . | . . Crush . | . . Escape Stasis . | . . Rewire . | . . Trap . | . . Miscellaneous . | . . Route ------- -11/Scrapyard -10/Materials (discovered 3 exits: [*Mat x3]) History --------- Turn | Location | Event 12 | -11/Scrapyard | Discovered new exit (range 15) 226 | -11/Scrapyard | Entered Materials 307 | -10/Materials | Discovered new exit (range 9) 308 | -10/Materials | Build established: Scavenger-Mutant 739 | -10/Materials | Discovered new exit (range 11) 995 | -10/Materials | Build established: Mutant 1158 | -10/Materials | Core integrity fell below 50% 1178 | -10/Materials | Core integrity fell below 20% 1197 | -10/Materials | Lost 5 parts (1p2n2w) 1200 | -10/Materials | Discovered new exit (range 16) 1256 | -10/Materials | Repaired Broken Imp. Heat Sink 1463 | -10/Materials | Destroyed self with Rocket Launcher Last Messages --------------- Trojan loaded successfully. Testing... Terminal linked with 2 systems. Awaiting botnet instructions. >>Access(Emergency) Found 1 emergency access door: (72,56) Map updated. >>Traps(Locate) Found 6 traps in 1 array: 6x Blade Trap Map updated. Dropped ECM Suite. Acquired Lgt. Armor Plating. Dropped Lgt. Armor Plating. Acquired ECM Suite. Connecting with Terminal... ALERT: Suspicious activity at Terminal M004. Dispatching Investigation squad. G-34 Mercenary destroyed. Map ----- +----------------------------------------------------+ | | | | | ????????????????????????????? | | ????????????????????????????? | | ????????????????????????????? | | ????????????????????????????? | | ????????????????????????????? | | ###?????????????????????????? | | !!##????????????????????????? | | !#????????????????????????? | | !#????????????????????????? | | ########?????? #????????? | | + #????? #????????? | | ## """ #????? #????????? | | ## """ #???? #????????? | | ## """ #??? #?????????? | | ## #??? #??????????? | | ##+####### #??????????? | | ###### ????? | | ????? | | ????? | | ##### """ ####???????? | | #####???# """ ##########?? | | ######### """ # #?? | | # """"" ##? | | ######### # ""T"" @ #? | | ## # #? | | """ ## # g #? | | "" "R" ## # """ #? | | "" " " ## # """= #? | | "" ## ==//# """% ? | | ## //# ^ =% #? | | ####+##### // ### ##? | | ! [ ###?? | | % * < #???? | | #???? | | ####%#####! #######+#####??? | | ####+##### #??# #??? | | #! #??#! #??? | | % + #??# #??? | | %% # #??# #??? | | %%% # #??# """#??? | | ########## ##?# """#??? | | # =# #?# """#??? | | # """ # ### """#??? | | # """ + + #??? | | # """ # ############??? | | # # # #??????? | | # """ ## ### #??????? | | # """ ## #?# #??????? | +----------------------------------------------------+ Best States ------------- Heat Dissipation 49 Energy Generation 10 Energy Capacity 250 Matter Stores 300 Matter Capacity 300 Sight Range 16 Terrain Scan Range 16 Terrain Scan Density 10 ECM Strength 1 Evasion (%) 62 Item Schematics ----------------- None Robot Schematics ------------------ None Fabricated ------------ Nothing Alien Tech Used ----------------- None Achievements -------------- None Challenges ------------ None Game ------ Seed SmartbombLaserDesublimator Manual? 0 Play Time 00:27:02 Cumulative 67.0 hours Start 2022.03.21 @ 23:54:55 End 2022.03.22 @ 00:20:55 Sessions 1 Manual Loads 0 Difficulty Rogue Special Mode None Game No. 52 Rogue 52 Adventurer 0 Explorer 0 Win Type - Total 0 Types 0/0/0/0/0/0/0/0/0 Lore% 44 Gallery% 44 Achievement% 39 Wizard Run 0 Options --------- ASCII 0 Keyboard 0 Movement Numpad Keybinds 0 Fullscreen 2 Font 18/TerminusBold Map View 76x50 Tactical HUD 0 Map Filters NONE Filters NONE Steam 1 RUN: 41f1dc7e-0fa1-4475-a794-232889cc9a7b